bitfinex/quotes_SOLUSD_20250829
["timestamp","ask_amount","ask_price","bid_price","bid_amount"]
[1756459123980,20.3589454,207.43,207.38,41.96]
[1756459124667,0.06,207.45,207.41,19.6689454]
[1756459124982,0.06,207.45,207.41,20.3589454]
[1756459125180,0.06,207.45,207.42,0.69]
[1756459125557,0.06,207.45,207.41,19.6689454]
[1756459125759,0.06,207.45,207.39,0.69]
[1756459126079,0.06,207.45,207.4,19.6689454]
[1756459126262,0.06,207.45,207.41,4.8213683]
[1756459126462,0.06,207.45,207.42,19.6689454]
[1756459126784,0.06,207.45,207.43,41.92]
[1756459127477,0.75,207.45,207.42,41.84]
[1756459127786,19.6689454,207.43,207.42,41.84]
[1756459128132,0.75,207.45,207.41,41.84]
[1756459128258,19.6689454,207.42,207.35,26.0]
[1756459128458,19.6689454,207.41,207.36,41.82]
[1756459128660,19.6689454,207.42,207.36,42.51]
[1756459129077,30.8804726,207.45,207.37,0.69]
[1756459129276,19.6689454,207.43,207.36,41.82]
[1756459129471,19.6689454,207.42,207.36,139.9889454]
[1756459129872,19.6689454,207.42,207.36,120.32]
[1756459130069,19.6689454,207.4,207.35,78.5]
[1756459130289,26.06,207.45,207.35,78.5]
[1756459130290,19.6689454,207.37,207.35,78.5]
[1756459130464,19.6689454,207.36,207.35,41.76]
[1756459130659,0.69,207.39,207.35,41.76]
[1756459130866,19.6689454,207.38,207.35,41.76]
[1756459131280,19.6689454,207.36,207.35,41.76]
[1756459131483,20.3589454,207.36,207.24,79.19]
[1756459131684,19.6689454,207.34,207.27,19.6689454]
[1756459131888,19.6689454,207.34,207.28,20.3589454]
[1756459132094,0.69,207.39,207.31,19.6689454]
[1756459132379,19.6689454,207.37,207.31,78.5]
[1756459132592,19.6689454,207.34,207.32,41.78]
[1756459132993,19.6689454,207.35,207.32,41.78]
[1756459133396,19.6689454,207.36,207.32,42.47]
[1756459133598,19.6689454,207.36,207.32,41.78]
[1756459134004,19.6689454,207.35,207.32,41.78]
[1756459134314,0.69,207.37,207.32,41.78]
[1756459134598,19.6689454,207.35,207.32,41.78]
[1756459134810,19.6689454,207.4,207.34,19.6689454]
[1756459135011,19.6689454,207.4,207.34,98.1689454]
[1756459135305,5.57094527,207.43,207.35,0.69]
[1756459135306,19.6689454,207.42,207.35,0.69]
[1756459135510,19.6689454,207.36,207.28,0.72]
[1756459135691,19.6689454,207.35,207.29,46.64396217]
[1756459135893,26.0,207.42,207.3,20.3589454]
[1756459136097,19.6689454,207.41,207.36,4.82253086]
[1756459136305,19.6689454,207.41,207.37,0.69]
[1756459136487,0.06,207.43,207.38,19.6689454]
[1756459136694,0.75,207.43,207.38,19.6689454]
[1756459137095,0.06,207.43,207.4,19.6689454]
[1756459137399,0.06,207.43,207.38,41.82]
[1756459137607,0.69,207.42,207.38,61.4889454]
[1756459138209,0.06,207.43,207.38,41.82]
[1756459138508,19.6689454,207.4,207.34,41.8]
[1756459138805,0.69,207.41,207.35,19.6689454]
[1756459139113,19.6689454,207.39,207.32,19.6689454]
[1756459139321,0.69,207.38,207.32,19.6689454]
[1756459139714,0.69,207.38,207.31,41.8]
[1756459139889,19.6689454,207.41,207.34,19.6689454]
[1756459140206,24.49056852,207.4,207.32,0.69]
[1756459140410,19.6689454,207.38,207.31,120.3]
[1756459140593,20.3889454,207.37,207.31,139.9089454]
[1756459140906,0.72,207.37,207.32,19.6689454]
[1756459141207,0.72,207.37,207.31,120.24]
[1756459141208,20.3889454,207.36,207.28,4.85435746]
[1756459141415,19.6689454,207.38,207.32,19.6689454]
[1756459141809,20.3889454,207.39,207.33,19.6689454]
[1756459142190,20.3889454,207.39,207.32,19.6689454]
[1756459142510,25.21098326,207.39,207.32,19.6689454]
[1756459142693,12.11243731,207.43,207.34,19.6689454]
[1756459142694,0.06,207.43,207.34,19.6689454]
[1756459143012,19.6689454,207.41,207.34,19.6689454]
[1756459143211,19.6689454,207.4,207.34,19.6689454]
[1756459143626,19.6689454,207.41,207.34,19.6689454]
[1756459143916,19.6689454,207.41,207.34,24.49179108]
[1756459144496,0.06,207.43,207.36,19.6689454]
[1756459144700,19.7289454,207.43,207.36,19.6689454]
[1756459145007,0.06,207.43,207.38,19.6689454]
[1756459145424,0.06,207.43,207.38,20.3889454]
[1756459145640,0.06,207.43,207.39,19.6689454]
[1756459145921,0.06,207.43,207.41,19.6689454]
[1756459146117,0.06,207.43,207.3,78.5]
[1756459146319,19.6689454,207.38,207.32,19.6689454]
[1756459146693,19.6689454,207.39,207.31,0.72]
[1756459146912,0.72,207.4,207.31,0.72]
[1756459147117,19.6689454,207.34,207.28,46.57439118]
[1756459147420,0.72,207.36,207.29,19.6689454]
[1756459147633,20.3889454,207.36,207.3,19.6689454]
[1756459148230,20.3889454,207.36,207.29,25.21288925]
[1756459148533,19.6689454,207.39,207.32,19.6689454]
[1756459148736,19.6689454,207.39,207.33,19.6689454]
[1756459149034,20.3889454,207.41,207.34,19.6689454]
[1756459149420,19.6689454,207.4,207.34,19.6689454]
[1756459150026,19.6689454,207.39,207.33,61.3889454]
[1756459150442,4.82177611,207.4,207.33,61.3889454]
[1756459150443,24.49072151,207.4,207.34,19.6689454]
[1756459150920,19.6689454,207.39,207.33,46.54310734]
[1756459151117,0.72,207.41,207.34,19.6689454]
[1756459151320,0.06,207.43,207.34,0.72]
[1756459151650,19.6689454,207.42,207.36,19.6689454]
[1756459151844,24.54989816,207.43,207.34,0.72]
[1756459152052,24.4902838,207.42,207.36,19.6689454]
[1756459152227,4.8213384,207.42,207.35,4.82270106]
[1756459152427,19.6689454,207.41,207.35,19.6689454]
[1756459152636,0.06,207.4,207.36,19.6689454]
[1756459152829,0.06,207.4,207.34,5.57297432]
[1756459153029,0.06,207.4,207.34,20.4189454]
[1756459153419,0.06,207.4,207.35,19.6689454]
[1756459153955,0.06,207.4,207.36,19.6689454]
[1756459154551,0.06,207.4,207.37,20.3889454]
[1756459154848,0.06,207.4,207.38,41.52]
[1756459155012,0.06,207.4,207.39,41.7]
[1756459155212,0.06,207.4,207.39,42.42]
[1756459155416,0.06,207.4,207.39,62.0889454]
[1756459156647,0.06,207.4,207.39,145.41077866]
[1756459156823,4.81884466,207.52,207.39,183.46536181]
[1756459157024,4.81884466,207.52,207.48,19.6689454]
[1756459157213,5.53884466,207.52,207.48,19.6689454]
[1756459157421,4.81857014,207.54,207.49,19.6689454]
[1756459157653,0.72,207.53,207.49,19.6689454]
[1756459157944,5.30082225,207.59,207.49,19.6689454]
[1756459157945,0.72,207.56,207.51,19.6689454]
[1756459158134,0.72,207.56,207.52,19.6689454]
[1756459158325,0.72,207.56,207.49,0.72]
[1756459158656,5.5380761,207.56,207.51,19.6689454]
[1756459158945,0.72,207.55,207.49,19.6689454]
[1756459159249,0.72,207.55,207.51,19.6689454]
[1756459160121,5.53822465,207.55,207.51,19.6689454]
[1756459160424,5.53822465,207.55,207.48,4.81953367]
[1756459160629,4.81741978,207.58,207.53,19.6689454]
[1756459160950,0.72,207.58,207.55,19.6689454]
[1756459161135,4.81717212,207.6,207.55,19.6689454]
[1756459161442,0.72,207.59,207.51,41.54]
[1756459161746,0.72,207.59,207.55,19.6689454]
[1756459161925,26.72,207.59,207.55,19.6689454]
[1756459162247,4.81741978,207.58,207.55,19.6689454]
[1756459163557,20.3889454,207.57,207.51,19.6689454]
[1756459163732,0.72,207.57,207.51,19.6689454]
[1756459164056,4.81741978,207.58,207.5,42.24]
[1756459164425,0.72,207.59,207.51,0.72]
[1756459164631,0.72,207.59,207.55,19.6689454]
[1756459164832,0.72,207.59,207.54,19.6689454]
[1756459165526,5.53719461,207.59,207.54,19.6689454]
[1756459167027,4.81719461,207.59,207.55,0.72]
[1756459167223,4.81719461,207.59,207.55,19.6689454]
[1756459167546,26.0,207.6,207.55,19.6689454]
[1756459167547,30.81700699,207.6,207.55,19.6689454]
[1756459167754,50.48595239,207.6,207.56,0.72]
[1756459168052,30.81700699,207.6,207.54,19.6689454]
[1756459168257,4.81669634,207.62,207.55,20.3889454]
[1756459168428,24.48524434,207.63,207.57,19.6689454]
[1756459168634,24.48524434,207.63,207.52,4.8187007]
[1756459168635,30.81629894,207.63,207.52,4.8187007]
[1756459168837,25.20553238,207.62,207.56,19.6689454]
[1756459169147,30.81658698,207.62,207.56,19.6689454]
[1756459169467,50.48553238,207.62,207.56,19.6689454]
[1756459169641,19.6689454,207.6,207.55,20.3889454]
[1756459170154,26.0,207.62,207.56,0.72]
[1756459170455,26.0,207.62,207.57,19.6689454]
[1756459170644,26.0,207.62,207.57,20.3389454]
[1756459170847,26.0,207.62,207.55,41.28]
[1756459170848,19.6689454,207.6,207.55,41.28]
[1756459171158,24.48604433,207.6,207.55,41.95]
[1756459171362,24.48604433,207.6,207.55,0.67]
[1756459172162,4.81709893,207.6,207.55,20.3389454]
[1756459172338,20.3189454,207.61,207.55,20.3389454]
[1756459172754,0.65,207.61,207.55,20.3389454]
[1756459173056,0.06,207.62,207.56,19.6689454]
[1756459173264,24.54550516,207.62,207.55,20.3389454]
[1756459173643,0.06,207.62,207.55,25.1570145]
[1756459173957,0.06,207.62,207.56,20.3389454]
[1756459174162,19.7289454,207.62,207.56,20.3389454]
[1756459174460,0.06,207.62,207.56,0.67]
[1756459174662,0.06,207.62,207.57,19.6689454]
[1756459174857,0.06,207.62,207.58,0.67]
[1756459175562,0.06,207.62,207.57,24.48658619]
[1756459175563,0.06,207.62,207.59,0.67]
[1756459176071,19.7289454,207.62,207.57,41.14]
[1756459176360,0.06,207.62,207.58,0.67]
[1756459176551,0.06,207.62,207.58,19.6689454]
[1756459176751,0.06,207.62,207.58,0.67]
[1756459177061,19.7289454,207.62,207.58,0.67]
[1756459177458,0.06,207.62,207.58,0.67]
[1756459177661,0.06,207.62,207.57,41.12]
[1756459177662,20.3189454,207.61,207.57,41.12]
[1756459178158,0.65,207.61,207.57,41.12]
[1756459178460,19.7289454,207.62,207.57,41.12]
[1756459178663,0.06,207.62,207.58,20.3389454]
[1756459178863,0.06,207.62,207.59,0.67]
[1756459179859,0.06,207.62,207.6,0.67]
[1756459180044,0.06,207.62,207.6,20.3389454]
[1756459180246,0.06,207.62,207.59,19.6689454]
[1756459180462,0.06,207.62,207.61,19.6689454]
[1756459180762,0.06,207.62,207.6,20.3389454]
[1756459181064,0.06,207.62,207.6,0.67]
[1756459181268,0.06,207.62,207.6,19.6689454]
[1756459181568,0.06,207.62,207.61,0.67]
[1756459181777,0.06,207.62,207.6,25.15585686]
[1756459181984,0.4,207.68,207.61,41.67]
[1756459182154,0.4,207.68,207.62,41.14]
[1756459182470,0.4,207.68,207.67,19.6689454]
[1756459182765,0.4,207.68,207.67,60.8289454]
[1756459183063,0.4,207.68,207.67,66.31427741]
[1756459183265,0.4,207.68,207.67,5.48533201]
[1756459183471,0.4,207.68,207.67,25.15427741]
[1756459183840,4.81116189,207.85,207.67,58.66366205]
[1756459184178,9.81324962,207.85,207.7,26.0]
[1756459184340,0.65,207.84,207.76,19.6689454]
[1756459184544,26.0,207.82,207.77,19.6689454]
[1756459184745,26.0,207.82,207.77,60.8889454]
[1756459185044,31.46186367,207.82,207.77,41.22]
[1756459185242,19.6689454,207.85,207.79,19.6689454]
[1756459185442,19.6689454,207.85,207.77,41.22]
[1756459185443,0.65,207.84,207.75,0.67]
[1756459185645,0.65,207.84,207.76,60.8689454]
[1756459185842,0.65,207.87,207.8,19.6689454]
[1756459186059,19.6689454,207.86,207.8,19.6689454]
[1756459186266,26.0,207.83,207.8,19.6689454]
[1756459187072,24.48002182,207.86,207.8,19.6689454]
[1756459187280,26.0,207.83,207.8,19.6689454]
[1756459187440,0.65,207.82,207.76,41.2]
[1756459187767,0.65,207.82,207.78,19.6689454]
[1756459187960,0.65,207.82,207.76,41.2]
[1756459188195,26.0,207.83,207.78,19.6689454]
[1756459188372,24.0735753,208.04,207.76,41.87]
[1756459188373,26.0,207.91,207.77,0.67]
[1756459188670,45.6689454,207.86,207.8,19.6689454]
[1756459189051,4.81116189,207.85,207.8,19.6689454]
[1756459189376,25.13010729,207.85,207.79,19.6689454]
[1756459189675,0.65,207.85,207.78,60.7889454]
[1756459189856,26.0,207.86,207.8,19.6689454]
[1756459190047,45.6689454,207.86,207.8,19.6689454]
[1756459190255,45.6689454,207.86,207.79,41.79]
[1756459190464,45.6689454,207.86,207.8,19.6689454]
[1756459190664,30.81097236,207.86,207.8,60.7889454]
[1756459190865,26.0,207.86,207.82,19.6689454]
[1756459191056,0.65,207.88,207.83,19.6689454]
[1756459191548,25.12952783,207.88,207.82,20.3389454]
[1756459191748,0.06,207.83,207.8,41.12]
[1756459191950,0.06,207.83,207.81,20.3389454]
[1756459192166,0.06,207.83,207.82,19.6689454]
[1756459192353,0.06,207.83,207.82,20.3389454]
[1756459193153,0.06,207.83,207.82,5.48185641]
[1756459193584,0.06,207.83,207.82,20.3389454]
[1756459193767,0.06,207.83,207.82,61.3389454]
[1756459194071,0.06,207.83,207.82,46.48185641]
[1756459194378,0.06,207.83,207.82,66.15080181]
[1756459194754,0.06,207.83,207.82,25.15080181]
[1756459194965,0.06,207.83,207.82,66.13080181]
[1756459195968,0.06,207.83,207.82,46.46185641]
[1756459196154,0.06,207.83,207.82,61.3189454]
[1756459196976,0.06,207.83,207.79,0.67]
[1756459197178,0.06,207.83,207.8,61.2989454]
[1756459197348,0.06,207.83,207.81,19.6689454]
[1756459197756,0.06,207.83,207.78,0.67]
[1756459198072,0.06,207.83,207.81,19.6689454]
[1756459198281,0.06,207.83,207.79,41.59]
[1756459198586,0.06,207.83,207.8,20.3389454]
[1756459198954,0.06,207.83,207.77,0.67]
[1756459199153,24.54057028,207.83,207.77,20.3389454]
[1756459199354,24.54057028,207.83,207.78,40.88]
[1756459199568,25.19057028,207.83,207.77,20.3389454]
[1756459199781,25.19057028,207.83,207.79,40.88]
[1756459199957,0.65,207.82,207.75,78.5]
[1756459200155,19.6689454,207.77,207.72,78.5]
[1756459200469,19.6689454,207.74,207.72,40.86]
[1756459200780,19.6689454,207.75,207.7,78.5]
[1756459200956,0.72,207.77,207.7,119.36]
[1756459201161,0.72,207.81,207.71,0.71]
[1756459201381,25.20122254,207.81,207.74,19.6689454]
[1756459201585,0.72,207.81,207.76,19.6689454]
[1756459201887,5.5321133,207.81,207.75,40.84]
[1756459202104,20.3889454,207.8,207.74,20.3789454]
[1756459202262,0.72,207.8,207.74,20.3789454]
[1756459202460,19.6689454,207.82,207.76,19.6689454]
[1756459202892,19.6689454,207.81,207.75,60.5089454]
[1756459203090,31.59184691,207.83,207.76,19.6689454]
[1756459203375,0.06,207.83,207.82,19.6689454]
[1756459203571,0.06,207.83,207.82,41.53]
[1756459204166,0.06,207.83,207.78,0.71]
[1756459204385,0.06,207.83,207.79,60.5289454]
[1756459204687,0.06,207.83,207.79,19.6689454]
[1756459204988,0.06,207.83,207.8,61.2389454]
[1756459205196,0.06,207.83,207.8,41.57]
[1756459205687,0.06,207.83,207.81,61.1989454]
[1756459205870,0.06,207.83,207.82,19.6689454]
[1756459206072,0.06,207.83,207.82,20.3789454]
[1756459207388,0.06,207.86,207.82,37.22044284]
[1756459207693,0.06,207.86,207.85,19.6689454]
[1756459207987,0.06,207.86,207.85,40.8]
[1756459207988,1e-08,207.86,207.85,40.8]
[1756459208202,1e-08,207.86,207.85,20.3789454]
[1756459208488,1e-08,207.86,207.85,61.1789454]
[1756459208860,1e-08,207.86,207.85,60.4689454]
[1756459209061,0.72000001,207.86,207.85,40.8]
[1756459209463,1e-08,207.86,207.85,40.8]
[1756459209663,1e-08,207.86,207.85,65.99010729]
[1756459210560,0.72,207.99,207.88,26.0]
[1756459210761,0.72,208.03,207.97,19.6689454]
[1756459210964,0.72,208.03,207.98,40.86]
[1756459211160,4.80754162,208.01,207.88,26.0]
[1756459211363,4.80754162,208.01,207.89,41.57]
[1756459211364,19.6689454,207.97,207.89,41.57]
[1756459211576,19.6689454,207.96,207.89,41.57]
[1756459211886,0.72,207.98,207.89,41.57]
[1756459211887,46.3889454,207.98,207.92,19.6689454]
[1756459212069,26.72,207.98,207.92,60.5489454]
[1756459212271,19.6689454,207.94,207.9,40.88]
[1756459212489,0.72,207.94,207.9,40.88]
[1756459212790,19.6689454,207.97,207.91,19.6689454]
[1756459213269,25.1977437,207.96,207.9,60.5489454]
[1756459213468,25.1977437,207.96,207.9,40.88]
[1756459213469,5.5287983,207.96,207.9,40.88]
[1756459213681,19.6689454,207.95,207.9,40.88]
[1756459213869,19.6689454,207.91,207.79,35.41]
[1756459214065,0.72,207.91,207.86,19.6689454]
[1756459214270,0.72,207.96,207.87,0.71]
[1756459214471,19.6689454,207.94,207.88,40.88]
[1756459214674,19.6689454,207.92,207.88,40.88]
[1756459214876,0.72,207.95,207.88,61.2589454]
[1756459215077,20.3889454,207.95,207.88,41.59]
[1756459215399,25.19798402,207.95,207.89,19.6689454]
[1756459215570,25.19798402,207.95,207.88,60.5489454]
[1756459215571,5.52903862,207.95,207.88,60.5489454]
[1756459215771,19.6689454,207.94,207.88,40.88]
[1756459216073,0.72,207.93,207.88,40.88]
[1756459216398,0.72,207.93,207.88,60.5489454]
[1756459216579,19.6689454,207.93,207.88,40.88]
[1756459216779,0.72,207.92,207.88,40.88]
[1756459216986,31.52863419,207.96,207.89,20.3789454]
[1756459217278,51.19757959,207.96,207.9,19.6689454]
[1756459217679,19.6689454,207.95,207.88,40.88]
[1756459217879,30.80863419,207.96,207.86,0.71]
[1756459218085,30.80863419,207.96,207.88,19.6689454]
[1756459218086,0.72,207.94,207.88,19.6689454]
[1756459218499,0.72,207.94,207.89,19.6689454]
[1756459219077,19.6689454,207.95,207.9,0.71]
[1756459219279,20.3889454,207.95,207.89,19.6689454]
[1756459219475,0.72,207.95,207.91,19.6689454]
[1756459219903,25.19787337,207.95,207.89,19.6689454]
[1756459220206,5.52892797,207.95,207.91,19.6689454]
[1756459220499,0.72,208.01,207.94,19.6689454]
[1756459220719,19.6689454,208.03,207.97,19.6689454]
[1756459220882,26.0,208.0,207.98,19.6689454]
[1756459221084,26.0,208.0,207.97,19.6689454]
[1756459221282,19.6689454,208.01,207.95,60.4889454]
[1756459221506,5.52799882,207.99,207.95,40.82]
[1756459221715,20.3889454,207.98,207.95,40.82]
[1756459222018,24.47694422,207.99,207.95,40.82]
[1756459222207,5.52799882,207.99,207.95,40.82]
[1756459222606,25.19694422,207.99,207.95,40.82]
[1756459222805,0.72,207.98,207.95,40.82]
[1756459223319,20.3889454,207.98,207.95,40.82]
[1756459223619,25.19722018,207.98,207.95,40.82]
[1756459223928,19.6689454,207.96,207.92,40.74]
[1756459224094,19.6689454,207.93,207.86,0.71]
[1756459224295,19.6689454,207.94,207.87,60.4089454]
[1756459224509,46.3889454,207.95,207.89,19.6689454]
[1756459224708,46.3889454,207.95,207.89,20.3789454]
[1756459224709,26.0,207.95,207.89,20.3789454]
[1756459224904,45.6689454,207.95,207.89,0.71]
[1756459225123,19.6689454,207.94,207.88,19.6689454]
[1756459225619,51.19795396,207.95,207.89,19.6689454]
[1756459225921,51.19795396,207.95,207.87,45.55058566]
[1756459225922,0.72,208.0,207.9,0.71]
[1756459226093,19.6689454,207.98,207.92,19.6689454]
[1756459226300,26.0,207.99,207.94,19.6689454]
[1756459226500,26.0,207.99,207.92,0.71]
[1756459226826,4.80723007,208.02,207.97,19.6689454]
[1756459227005,5.52723007,208.02,207.97,19.6689454]
[1756459227204,0.72,208.02,207.97,19.6689454]
[1756459227407,0.72,208.07,207.99,19.6689454]
[1756459227604,24.47555778,208.05,207.99,19.6689454]
[1756459227805,24.47555778,208.05,207.98,20.3789454]
[1756459227995,5.52661238,208.05,207.98,20.3789454]
[1756459228197,5.52661238,208.05,207.98,0.71]
[1756459228402,25.19555778,208.05,207.99,19.6689454]
[1756459229304,5.52661238,208.05,208.02,19.6689454]
[1756459230220,31.52656379,208.05,208.02,19.6689454]
[1756459231021,31.52656379,208.05,207.98,0.71]
[1756459231232,31.52656379,208.05,208.02,19.6689454]
[1756459231731,0.7,208.04,208.02,19.6689454]
[1756459231901,20.3689454,208.03,207.96,40.78]
[1756459232212,5.50723007,208.02,207.96,40.78]
[1756459232408,25.17617547,208.02,207.96,60.4489454]
[1756459233116,5.50723007,208.02,207.98,19.6689454]
[1756459233301,26.0,208.06,207.98,19.6689454]
[1756459233506,19.6689454,208.04,207.98,19.6689454]
[1756459233728,4.80653689,208.05,207.97,0.71]
[1756459233729,19.6689454,208.03,207.97,0.71]
[1756459233916,19.6689454,208.01,207.96,40.74]
[1756459234218,19.6689454,207.98,207.91,0.71]
[1756459234428,0.7,207.98,207.93,19.6689454]
[1756459234611,0.7,207.97,207.92,60.3889454]
[1756459234808,4.8076923,208.0,207.92,60.3889454]
[1756459234809,4.8076923,208.0,207.95,19.6689454]
[1756459235013,4.8076923,208.0,207.96,19.6689454]
[1756459235315,4.8076923,208.0,207.99,19.6689454]
[1756459235627,5.5076923,208.0,207.97,19.6689454]
[1756459235943,4.80741793,208.02,207.99,19.6689454]
[1756459236145,4.80741793,208.02,207.97,0.71]
[1756459236441,26.0,208.02,208.01,19.6689454]
[1756459236810,26.7,208.02,207.93,0.71]
[1756459237018,26.7,208.02,207.97,19.6689454]
[1756459237233,26.7,208.02,207.94,40.74]
[1756459237234,0.7,208.01,207.98,19.6689454]
[1756459237605,0.7,208.01,207.99,19.6689454]
[1756459237814,0.7,208.01,207.94,41.45]
[1756459237815,0.7,208.01,207.98,19.6689454]
[1756459238119,0.7,208.01,207.99,19.6689454]
[1756459238120,4.80746117,208.01,207.99,19.6689454]
[1756459238503,4.80746117,208.01,207.97,19.6689454]
[1756459238726,5.50746117,208.01,207.97,19.6689454]
[1756459239007,44.67235392,208.08,207.95,40.7]
[1756459239008,4.80598578,208.08,208.0,19.6689454]
[1756459239309,26.0,208.07,208.03,19.6689454]
[1756459239512,4.80598578,208.08,208.03,19.6689454]
[1756459239709,0.7,208.07,208.03,19.6689454]
[1756459240013,0.7,208.07,208.02,19.6689454]
[1756459240014,4.80630587,208.06,208.02,19.6689454]
[1756459240818,4.80630587,208.06,208.03,19.6689454]
[1756459241131,4.80612598,208.07,208.04,19.6689454]
[1756459241307,4.80612598,208.07,208.03,19.6689454]
[1756459242327,4.8058439,208.08,208.04,19.6689454]
[1756459243723,4.8058439,208.08,208.01,0.71]
[1756459243724,0.7,208.07,208.02,19.6689454]
[1756459244232,4.80651461,208.06,208.02,19.6689454]
[1756459244417,4.80651461,208.06,208.02,0.71]
[1756459244617,4.80651461,208.06,208.02,19.6689454]
[1756459245109,4.80651461,208.06,207.98,4.80813637]
[1756459245110,19.6689454,208.03,207.96,0.71]
[1756459245330,0.7,208.03,207.96,20.3789454]
[1756459245512,20.3689454,208.03,207.97,19.6689454]
[1756459246322,4.80723007,208.02,207.98,19.6689454]
[1756459246519,25.17617547,208.02,207.96,20.3789454]
[1756459246724,25.17617547,208.02,207.96,0.71]
[1756459247009,25.17617547,208.02,207.96,20.3789454]
[1756459247508,4.8076923,208.0,207.96,0.71]
[1756459247726,4.8076923,208.0,207.89,4.8978986]
[1756459247727,19.6689454,207.97,207.89,0.71]
[1756459247934,19.6689454,207.95,207.89,20.3789454]
[1756459248246,0.7,207.97,207.89,20.3789454]
[1756459248247,19.6689454,207.96,207.9,19.6689454]
[1756459248428,19.6689454,207.95,207.89,20.3789454]
[1756459248631,19.6689454,207.93,207.87,19.6689454]
[1756459248836,19.6689454,207.93,207.88,0.71]
[1756459249034,19.6689454,207.91,207.86,40.59]
[1756459249211,19.6689454,207.9,207.86,41.3]
[1756459249410,19.6689454,207.91,207.86,41.3]
[1756459249616,4.81000481,207.9,207.86,41.3]
[1756459249812,24.47895021,207.9,207.86,40.59]
[1756459250012,4.81000481,207.9,207.86,60.2589454]
[1756459250223,4.81000481,207.9,207.86,60.9689454]
[1756459250413,4.81000481,207.9,207.86,41.3]
[1756459250611,19.6689454,207.91,207.86,41.3]
[1756459251626,24.47885696,207.91,207.86,41.3]
[1756459251836,4.80991156,207.91,207.86,41.3]
[1756459252040,24.47885696,207.91,207.86,41.3]
[1756459252337,24.47877064,207.91,207.86,41.3]
[1756459252526,30.80956584,207.92,207.86,41.3]
[1756459252728,19.6689454,207.91,207.86,41.3]
[1756459253434,30.80956584,207.92,207.86,41.3]
[1756459253628,19.6689454,207.91,207.86,41.3]
[1756459253831,19.6689454,207.89,207.86,0.03]
[1756459254023,0.7,207.9,207.86,0.03]
[1756459254218,30.80956584,207.92,207.86,0.03]
[1756459254522,0.7,207.93,207.89,19.6689454]
[1756459254725,14.463756,207.99,207.92,19.6689454]
[1756459254922,34.8327014,207.99,207.93,19.6689454]
[1756459255135,19.6689454,208.01,207.95,19.6689454]
[1756459255338,19.6689454,207.99,207.93,19.6689454]
[1756459255545,19.6689454,207.98,207.92,60.2489454]
[1756459255728,19.6689454,207.98,207.92,19.6689454]
[1756459256038,25.17672995,208.0,207.94,19.6689454]
[1756459256743,25.17672995,208.0,207.93,0.71]
[1756459256744,19.6689454,207.95,207.86,20.4089454]
[1756459256921,19.6689454,207.92,207.86,20.4089454]
[1756459257126,19.6689454,207.93,207.87,19.6689454]
[1756459257637,26.0,207.97,207.86,0.03]
[1756459257840,19.6689454,207.92,207.86,19.6989454]
[1756459258425,26.0,207.93,207.86,0.03]
[1756459258624,19.6689454,207.91,207.86,0.03]
[1756459258841,19.6689454,207.89,207.86,0.03]
[1756459259041,19.6689454,207.9,207.86,0.03]
[1756459259640,26.0,207.93,207.86,0.03]
[1756459259817,0.7,207.9,207.86,0.03]
[1756459260014,19.6689454,207.88,207.86,0.03]
[1756459260323,26.7,207.89,207.86,0.03]
[1756459260526,45.6689454,207.89,207.86,0.03]
[1756459260928,19.6689454,207.9,207.86,0.03]
[1756459261435,26.67,207.89,207.86,0.03]
[1756459261630,19.6689454,207.87,207.86,0.03]
[1756459262041,24.47964439,207.87,207.86,0.03]
[1756459262345,25.14964439,207.87,207.86,0.03]
[1756459263052,30.03962,207.87,207.86,0.03]
[1756459263270,5.48069899,207.87,207.86,0.03]
[1756459263451,25.14964439,207.87,207.86,0.03]
[1756459263823,29.87646434,207.87,207.86,0.03]
[1756459264042,50.47945717,207.88,207.86,0.03]